bitfinex/quotes_BTCUSD_20250114
["timestamp","ask_amount","ask_price","bid_price","bid_amount"]
[1736881950461,0.3298,96961.0,96952.0,0.0001367]
[1736881950704,0.206281,96955.0,96952.0,0.0001367]
[1736881950936,0.01219848,96954.0,96952.0,0.0001367]
[1736881951570,0.01219848,96954.0,96952.0,0.0011367]
[1736881951783,0.023,96956.0,96952.0,0.0011367]
[1736881951963,0.01219724,96953.0,96952.0,0.0001367]
[1736881952164,0.005,96954.0,96952.0,0.0001367]
[1736881952391,0.023,96952.0,96946.0,0.0001367]
[1736881952557,0.206294,96949.0,96945.0,0.0001367]
[1736881952736,0.10422692,96948.0,96933.0,0.0001367]
[1736881952942,0.206326,96934.0,96932.0,0.00179172]
[1736881953151,0.12722692,96933.0,96932.0,0.00179172]
[1736881953350,0.74226195,96933.0,96932.0,0.00179172]
[1736881954385,0.74726195,96933.0,96932.0,0.00179172]
[1736881954623,0.74226195,96933.0,96932.0,0.00179172]
[1736881954826,0.74626195,96933.0,96932.0,0.00279172]
[1736881955043,0.75026195,96933.0,96932.0,0.00279172]
[1736881955460,0.75626195,96933.0,96932.0,0.00279172]
[1736881958678,0.70476195,96933.0,96932.0,0.00279172]
[1736881958996,0.47819904,96933.0,96932.0,0.00279172]
[1736881960353,0.47819904,96933.0,96932.0,0.00269172]
[1736881960766,0.46645662,96933.0,96932.0,0.00269172]
[1736881960963,0.45519904,96933.0,96932.0,0.00269172]
[1736881962744,0.47819904,96933.0,96932.0,0.00269172]
[1736881964707,0.47219904,96933.0,96932.0,0.00269172]
[1736881964907,0.47819904,96933.0,96932.0,0.00269172]
[1736881965286,0.48169236,96933.0,96932.0,0.00269172]
[1736881966053,0.58591928,96933.0,96932.0,0.00269172]
[1736881966610,0.48169236,96933.0,96932.0,0.00269172]
[1736881967437,0.63169236,96933.0,96932.0,0.00269172]
[1736881969727,0.3528,96898.0,96896.0,0.00179235]
[1736881970020,0.80581419,96897.0,96896.0,0.00179235]
[1736881970361,0.97657049,96897.0,96896.0,0.00179235]
[1736881971095,0.97657049,96897.0,96896.0,0.00328905]
[1736881971295,0.9867384,96897.0,96896.0,0.00328905]
[1736881971833,0.8315821,96897.0,96896.0,0.00328905]
[1736881972032,0.6875821,96897.0,96896.0,0.00328905]
[1736881972238,0.67741419,96897.0,96896.0,0.00328905]
[1736881972392,0.67741419,96897.0,96896.0,0.00228905]
[1736881972393,0.47101019,96897.0,96896.0,0.00228905]
[1736881972590,0.47901019,96897.0,96896.0,0.00328905]
[1736881972790,0.47901019,96897.0,96896.0,0.00228905]
[1736881972791,0.47101019,96897.0,96896.0,0.00228905]
[1736881973274,0.47701019,96897.0,96896.0,0.00228905]
[1736881973612,0.47501019,96897.0,96896.0,0.00228905]
[1736881973965,0.47701019,96897.0,96896.0,0.00228905]
[1736881974378,0.47101019,96897.0,96896.0,0.00228905]
[1736881974604,0.45401019,96897.0,96895.0,0.00511314]
[1736881974802,0.45656816,96897.0,96895.0,0.00511314]
[1736881975506,0.44237073,96897.0,96895.0,0.00511314]
[1736881975925,0.34014381,96897.0,96895.0,0.00511314]
[1736881976123,0.34014381,96897.0,96896.0,0.09865311]
[1736881976327,0.34014381,96897.0,96896.0,0.0775]
[1736881976781,0.33914381,96897.0,96896.0,0.0775]
[1736881977212,0.34114381,96897.0,96896.0,0.0775]
[1736881977386,0.33814381,96897.0,96896.0,0.0775]
[1736881977588,0.34014381,96897.0,96896.0,0.0775]
[1736881977889,0.33814381,96897.0,96896.0,0.0775]
[1736881979301,0.34014381,96897.0,96896.0,0.0775]
[1736881981575,0.34014381,96897.0,96896.0,0.07929277]
[1736881982907,0.33384952,96897.0,96896.0,0.07929277]
[1736881983258,0.34013894,96897.0,96896.0,0.07929277]
[1736881984862,0.50137975,96897.0,96896.0,0.00179277]
[1736881985063,0.46736586,96897.0,96896.0,0.00179277]
[1736881985631,0.45496243,96897.0,96896.0,0.00179277]
[1736881987827,0.45036586,96897.0,96896.0,0.00179277]
[1736881988033,0.45355538,96897.0,96896.0,0.00179277]
[1736881988265,0.01352846,96897.0,96896.0,0.08469277]
[1736881988475,0.01352846,96897.0,96896.0,0.11987655]
[1736881988476,0.00723904,96897.0,96896.0,0.11987655]
[1736881988679,0.00404952,96897.0,96896.0,0.11987655]
[1736881989078,0.00404952,96897.0,96896.0,0.32410347]
[1736881989342,0.00204952,96897.0,96896.0,0.5286149]
[1736881989536,0.006,96930.0,96902.0,0.25]
[1736881989744,0.00795653,96929.0,96911.0,0.0829]
[1736881989920,0.00795653,96929.0,96921.0,0.206351]
[1736881990123,0.00795653,96929.0,96924.0,0.206345]
[1736881991279,0.00795653,96929.0,96915.0,0.206366]
[1736881991486,0.00795653,96929.0,96921.0,0.206352]
[1736881991684,0.00049565,96930.0,96921.0,0.206352]
[1736881991859,0.00801224,96928.0,96921.0,0.206352]
[1736881992067,0.003,96929.0,96921.0,0.206352]
[1736881992288,0.00801099,96927.0,96921.0,0.206352]
[1736881992446,0.00801224,96928.0,96921.0,0.206352]
[1736881992833,0.00801099,96927.0,96921.0,0.206352]
[1736881993246,0.005,96929.0,96921.0,0.206352]
[1736881993746,0.003,96928.0,96925.0,0.206344]
[1736881993952,0.007,96928.0,96925.0,0.206344]
[1736881994160,0.007,96928.0,96921.0,0.206352]
[1736881994995,0.004,96928.0,96921.0,0.206352]
[1736881995162,0.004,96928.0,96924.0,0.206345]
[1736881995987,0.00134975,96930.0,96924.0,0.206345]
[1736881996138,0.002,96928.0,96924.0,0.206345]
[1736881996337,0.004,96928.0,96924.0,0.206345]
[1736881996571,0.00134975,96930.0,96921.0,0.206352]
[1736881996982,0.002,96928.0,96921.0,0.412705]
[1736881997188,0.004,96928.0,96921.0,0.412705]
[1736881997709,0.002,96928.0,96921.0,0.206352]
[1736881997865,0.002,96928.0,96921.0,0.23825616]
[1736881998071,0.002,96928.0,96924.0,0.206345]
[1736881998290,0.00434975,96930.0,96924.0,0.206345]
[1736881998501,0.00634975,96930.0,96924.0,0.206345]
[1736881999017,0.00434975,96930.0,96924.0,0.206345]
[1736881999319,0.001,96928.0,96922.0,0.206351]
[1736881999730,0.00134975,96930.0,96922.0,0.206351]
[1736882000045,0.002,96928.0,96918.0,0.206358]
[1736882000336,0.00234975,96930.0,96922.0,0.20635]
[1736882001073,0.00334975,96930.0,96922.0,0.20635]
[1736882001229,0.00234975,96930.0,96922.0,0.20635]
[1736882001635,0.00334975,96930.0,96922.0,0.20635]
[1736882002792,0.00334975,96930.0,96918.0,0.206358]
[1736882003079,0.00334975,96930.0,96919.0,0.20738868]
[1736882003285,0.00334975,96930.0,96926.0,0.206341]
[1736882003492,0.00334975,96930.0,96928.0,0.206338]
[1736882003694,0.00334975,96930.0,96929.0,0.43505839]
[1736882003895,0.00234975,96930.0,96929.0,0.43402692]
[1736882004055,0.00234975,96930.0,96929.0,0.53825384]
[1736882004256,0.00334975,96930.0,96929.0,0.53825384]
[1736882004457,0.00234975,96930.0,96929.0,0.53825384]
[1736882004860,0.00234975,96930.0,96929.0,0.54725384]
[1736882005246,0.00334975,96930.0,96929.0,0.54725384]
[1736882005459,0.00334975,96930.0,96929.0,0.63905229]
[1736882005688,0.00234975,96930.0,96929.0,0.6595975]
[1736882006091,0.00234975,96930.0,96929.0,0.6635975]
[1736882006306,0.00234975,96930.0,96929.0,0.57179905]
[1736882006738,0.0016675,96962.0,96931.0,0.1]
[1736882006945,0.00171706,96962.0,96951.0,0.206288]
[1736882007573,0.0069074,96961.0,96951.0,0.206288]
[1736882008721,0.0069074,96961.0,96947.0,0.206298]
[1736882009131,0.0089074,96961.0,96947.0,0.206298]
[1736882009360,0.0089074,96961.0,96947.0,0.20732937]
[1736882009643,0.00171706,96962.0,96947.0,0.20732937]
[1736882010149,0.002,96961.0,96947.0,0.20732937]
[1736882010668,0.002,96961.0,96950.0,0.20629]
[1736882010857,0.004,96961.0,96950.0,0.20629]
[1736882011261,0.00171706,96962.0,96950.0,0.20629]
[1736882011561,0.00371706,96962.0,96950.0,0.20629]
[1736882011777,0.002,96961.0,96950.0,0.20629]
[1736882011976,0.00371706,96962.0,96950.0,0.20629]
[1736882012201,0.00171706,96962.0,96950.0,0.20629]
[1736882012410,0.002,96961.0,96947.0,0.20732937]
[1736882012584,0.002,96961.0,96947.0,0.206298]
[1736882012916,0.002,96961.0,96947.0,0.20732937]
[1736882013132,0.31740307,96960.0,96936.0,0.206321]
[1736882013336,0.11113307,96960.0,96940.0,0.00103141]
[1736882013559,0.11113307,96960.0,96946.0,0.206299]
[1736882013930,0.11113307,96960.0,96949.0,0.206292]
[1736882014079,0.29413652,96960.0,96949.0,0.206292]
[1736882014282,0.29413652,96960.0,96950.0,0.0412591]
[1736882014479,0.29513652,96960.0,96950.0,0.0412591]
[1736882014926,0.29413652,96960.0,96950.0,0.0412591]
[1736882015302,0.29513652,96960.0,96950.0,0.0412591]
[1736882015503,0.29613652,96960.0,96950.0,0.0412591]
[1736882015674,0.29613652,96960.0,96951.0,0.04538601]
[1736882016872,0.29713652,96960.0,96946.0,0.206299]
[1736882017072,0.29613652,96960.0,96946.0,0.206299]
[1736882017283,0.1899096,96960.0,96950.0,0.412581]
[1736882017484,0.1909096,96960.0,96950.0,0.20629]
[1736882017720,0.1919096,96960.0,96951.0,0.05029084]
[1736882018015,0.1929096,96960.0,96951.0,0.206289]
[1736882018215,0.1899096,96960.0,96951.0,0.206289]
[1736882018391,0.1919096,96960.0,96951.0,0.206289]
[1736882018599,0.1929096,96960.0,96951.0,0.206289]
[1736882018919,0.1909096,96960.0,96951.0,0.206289]
[1736882019333,0.1929096,96960.0,96951.0,0.25675899]
[1736882019899,0.1919096,96960.0,96951.0,0.25675899]
[1736882020131,0.1929096,96960.0,96951.0,0.25675899]
[1736882020336,0.00990615,96960.0,96959.0,0.206272]
[1736882020537,0.003,96960.0,96959.0,0.206272]
[1736882020741,0.003,96960.0,96959.0,0.27807857]
[1736882021137,0.001,96960.0,96959.0,0.42807857]
[1736882021343,0.001,96960.0,96959.0,0.40763104]
[1736882021515,0.00171706,96962.0,96960.0,0.15]
[1736882021738,0.00171706,96962.0,96959.0,0.40763104]
[1736882021739,0.00171706,96962.0,96961.0,0.35729913]
[1736882021941,0.00171706,96962.0,96961.0,0.37049445]
[1736882022523,0.00179046,96976.0,96975.0,0.206238]
[1736882022750,0.00179046,96976.0,96975.0,0.64129586]
[1736882022891,0.00179046,96976.0,96975.0,0.74026492]
[1736882023497,0.00028981,96993.0,96976.0,0.35]
[1736882023703,0.00013802,96992.0,96990.0,0.206206]
[1736882023919,0.00013802,96992.0,96991.0,0.00103091]
[1736882025047,0.00013802,96992.0,96991.0,0.00203091]
[1736882025705,0.00013802,96992.0,96991.0,0.00103091]
[1736882025913,0.00013802,96992.0,96991.0,0.00303091]
[1736882026122,0.00013802,96992.0,96991.0,0.07148836]
[1736882027365,0.00113802,96992.0,96991.0,0.07848836]
[1736882029650,0.00113802,96992.0,96991.0,0.51431528]
[1736882029921,0.00113802,96992.0,96991.0,0.61328437]
[1736882030355,0.00113802,96992.0,96991.0,0.61128437]
[1736882030727,0.00013802,96992.0,96991.0,0.60628437]
[1736882031103,0.00113802,96992.0,96991.0,0.61328437]
[1736882031502,0.00113802,96992.0,96991.0,0.63444031]
[1736882031704,0.00113802,96992.0,96991.0,0.64023203]
[1736882031901,8.3e-07,96993.0,96992.0,0.986502]
[1736882032264,8.3e-07,96993.0,96992.0,1.24335584]
[1736882033420,8.3e-07,96993.0,96992.0,2.74335584]
[1736882033622,8.3e-07,96993.0,96992.0,2.75535584]
[1736882033847,8.3e-07,96993.0,96992.0,1.25535584]
[1736882034047,8.3e-07,96993.0,96992.0,1.24635584]
[1736882034247,8.3e-07,96993.0,96992.0,1.25235584]
[1736882034467,8.3e-07,96993.0,96992.0,1.25935584]
[1736882034677,8.3e-07,96993.0,96992.0,1.26535584]
[1736882034871,0.0008535,97021.0,97011.0,0.537762]
[1736882035172,0.0008535,97021.0,97011.0,0.67821162]
[1736882036804,0.0008535,97021.0,97011.0,0.68721162]
[1736882036947,0.0008535,97021.0,97011.0,0.67821162]
[1736882037149,0.0008535,97021.0,97011.0,0.68221162]
[1736882037533,0.0008535,97021.0,97011.0,0.70161758]
[1736882037735,0.0008535,97021.0,97011.0,0.69761758]
[1736882037848,0.0008535,97021.0,97011.0,0.70161758]
[1736882038525,0.0008535,97021.0,97011.0,0.72186969]
[1736882041998,0.0008535,97021.0,97011.0,0.77116969]
[1736882047857,0.0008535,97021.0,97011.0,0.77092269]
[1736882050163,0.0008535,97021.0,97011.0,0.79392269]
[1736882050376,0.0008535,97021.0,97011.0,0.89392269]
[1736882052671,3.5e-07,97012.0,97011.0,0.89805069]
[1736882052897,3.5e-07,97012.0,97011.0,0.92987453]
[1736882053141,3.5e-07,97012.0,97011.0,2.42987453]
[1736882053843,3.5e-07,97012.0,97011.0,2.42587453]
[1736882054036,3.5e-07,97012.0,97011.0,2.41687453]
[1736882054259,3.5e-07,97012.0,97011.0,2.42187453]
[1736882054626,3.5e-07,97012.0,97011.0,2.41687453]
[1736882055015,3.5e-07,97012.0,97011.0,2.42187453]
[1736882055210,0.07620775,97052.0,97029.0,0.099753]
[1736882055426,0.07670329,97052.0,97042.0,0.206094]
[1736882055668,0.07670329,97052.0,97043.0,0.00103035]
[1736882056914,0.07970329,97052.0,97043.0,0.00103035]
[1736882057209,0.07970329,97052.0,97044.0,0.206092]
[1736882057436,0.00049554,97052.0,97045.0,0.00103035]
[1736882057636,0.00049554,97052.0,97048.0,0.412164]
[1736882057838,0.00349554,97052.0,97050.0,0.206079]
[1736882058058,0.00349554,97052.0,97050.0,0.20710929]
[1736882058269,0.00349554,97052.0,97051.0,0.00103029]
[1736882058422,0.00349554,97052.0,97051.0,0.04565069]
[1736882058659,0.00049554,97052.0,97051.0,0.04565069]
[1736882060220,0.00249554,97052.0,97051.0,0.04565069]
[1736882060730,0.00049554,97052.0,97051.0,0.04565069]
[1736882060931,0.00249554,97052.0,97051.0,0.04565069]
[1736882061180,0.00249554,97052.0,97051.0,0.00103029]
[1736882061575,0.00049554,97052.0,97051.0,0.00103029]
[1736882061917,0.00049554,97052.0,97051.0,0.00203029]
[1736882066649,0.00049554,97052.0,97051.0,0.001]
[1736882067682,0.00049554,97052.0,97051.0,0.00203026]
[1736882068059,0.00134824,97052.0,97051.0,0.00203026]
[1736882068247,0.00134824,97052.0,97051.0,0.04344949]
[1736882068815,0.00134824,97052.0,97051.0,0.00203026]
[1736882069961,0.00134824,97052.0,97051.0,0.20810726]
[1736882073754,0.00134824,97052.0,97051.0,0.00203026]
[1736882075566,0.00134824,97052.0,97051.0,0.001]
[1736882075766,0.08429524,97052.0,97051.0,0.001]
[1736882075969,0.13771034,97052.0,97051.0,0.001]
[1736882076587,0.34378534,97052.0,97051.0,0.001]
[1736882076779,0.34578534,97052.0,97051.0,0.001]
[1736882077218,0.34378534,97052.0,97051.0,0.001]
[1736882077514,0.13971034,97052.0,97051.0,0.001]
[1736882077694,0.13971034,97052.0,97037.0,0.00103041]
[1736882077899,0.1744587,97052.0,97037.0,0.00103041]
[1736882078100,0.13971034,97052.0,97037.0,0.00103041]
[1736882078497,0.000247,97049.0,97036.0,0.206107]
[1736882078705,0.13946334,97052.0,97028.0,0.13308345]
[1736882078706,0.000247,97044.0,97029.0,0.29792145]
[1736882079321,0.000247,97044.0,97030.0,0.00103048]
[1736882079649,0.01069439,97044.0,97031.0,0.206119]
[1736882079810,0.01069439,97044.0,97031.0,0.20714948]
[1736882079811,0.0051039,97043.0,97031.0,0.20714948]
[1736882080017,0.01169439,97044.0,97031.0,0.20714948]
[1736882080217,0.0051039,97043.0,97031.0,0.20714948]
[1736882080660,0.0051039,97043.0,97034.0,0.206111]
[1736882080856,0.001247,97044.0,97034.0,0.206111]
[1736882082009,0.001247,97044.0,97034.0,0.20890167]
[1736882082243,0.00134824,97052.0,97035.0,0.0426356]
[1736882082400,0.00134824,97052.0,97048.0,0.412165]
[1736882083187,0.00134824,97052.0,97050.0,0.206079]
[1736882083384,0.00134824,97052.0,97051.0,0.00103025]
[1736882084906,0.00134824,97052.0,97051.0,0.0639717]
[1736882085181,0.00134824,97052.0,97051.0,0.00103025]
[1736882085383,0.00234824,97052.0,97051.0,0.00103025]
[1736882086328,0.00134824,97052.0,97051.0,0.00103025]
[1736882086774,0.00134824,97052.0,97051.0,0.02716013]
[1736882086967,0.00134824,97052.0,97051.0,0.02303213]
[1736882087174,0.00134824,97052.0,97051.0,0.08817377]
[1736882087487,0.00134824,97052.0,97051.0,0.09217377]
[1736882087733,0.00134824,97052.0,97051.0,0.02703213]
[1736882092121,0.00134824,97052.0,97051.0,0.00603025]
[1736882092932,0.00134824,97052.0,97051.0,0.01563026]
[1736882094112,0.00134824,97052.0,97051.0,0.01742093]
[1736882094338,0.00134824,97052.0,97051.0,0.01639068]
[1736882095108,0.00134824,97052.0,97051.0,0.01539068]
[1736882095311,0.00134824,97052.0,97051.0,0.00179067]
[1736882095488,0.00234824,97052.0,97051.0,0.00282092]
[1736882095685,0.00234824,97052.0,97051.0,0.00282093]
[1736882100253,0.00234824,97052.0,97051.0,0.00179067]
[1736882101045,0.00234824,97052.0,97051.0,0.00282092]
[1736882101409,0.00234824,97052.0,97051.0,0.01241631]
[1736882102931,0.00234824,97052.0,97051.0,0.00282092]
[1736882105375,0.00234824,97052.0,97051.0,0.01241753]
[1736882111523,0.00234824,97052.0,97051.0,0.44419745]
[1736882111783,0.00234824,97052.0,97051.0,0.4913672]
[1736882112384,0.00134824,97052.0,97051.0,1.9913672]
[1736882112591,0.00134824,97052.0,97051.0,2.09759412]
[1736882113467,2.4e-07,97052.0,97051.0,2.09759412]
[1736882113672,2.4e-07,97052.0,97051.0,2.12759412]
[1736882113872,2.4e-07,97052.0,97051.0,2.15753675]
[1736882114073,2.4e-07,97052.0,97051.0,2.15053675]
[1736882114276,5.4e-07,97059.0,97058.0,0.455815]
[1736882114484,1e-07,97059.0,97058.0,0.94521147]
[1736882115073,1e-07,97059.0,97058.0,0.95480808]
[1736882115521,1e-07,97059.0,97058.0,0.96380808]
[1736882115876,1e-07,97059.0,97058.0,0.96780808]
[1736882116085,0.0008537,97059.0,97058.0,0.96780808]
[1736882116295,0.0008537,97059.0,97058.0,0.93586545]
[1736882116504,0.0008537,97059.0,97058.0,0.96778818]
[1736882117400,0.0008537,97059.0,97058.0,0.93586545]
[1736882117572,0.0008537,97059.0,97058.0,0.94594801]
[1736882117984,7e-07,97059.0,97058.0,2.6756449]
[1736882118285,7e-07,97059.0,97058.0,1.1756449]
[1736882118626,7e-07,97059.0,97058.0,1.17357873]
[1736882119727,7e-07,97059.0,97058.0,0.94388184]
[1736882120712,7e-07,97059.0,97058.0,0.84388184]
[1736882120914,7e-07,97059.0,97058.0,0.87954414]
[1736882121179,7e-07,97059.0,97058.0,0.69751722]
[1736882121389,7e-07,97059.0,97058.0,0.87317022]
[1736882122096,7e-07,97059.0,97058.0,0.86917022]
[1736882122256,7e-07,97059.0,97058.0,0.68755492]
[1736882123698,7e-07,97059.0,97058.0,0.67655492]
[1736882123908,7e-07,97059.0,97058.0,0.78078184]
[1736882124103,7e-07,97059.0,97058.0,0.79378184]
[1736882124808,7e-07,97059.0,97058.0,0.89378184]
[1736882126551,7e-07,97059.0,97058.0,0.91678184]
[1736882126871,7e-07,97059.0,97058.0,0.96238184]
[1736882127171,7e-07,97059.0,97058.0,0.86238184]
[1736882127443,0.00012521,97069.0,97058.0,0.86238184]
[1736882127444,1e-06,97064.0,97063.0,0.099753]
[1736882127617,1e-06,97064.0,97063.0,0.75614053]
[1736882127878,2.1e-07,97069.0,97068.0,0.400953]
[1736882128082,4e-05,97082.0,97081.0,0.388366]
[1736882128228,4e-05,97082.0,97081.0,0.54283992]
[1736882128409,4e-05,97082.0,97081.0,0.56446684]
[1736882129283,0.9896633,97100.0,97081.0,0.56446684]
[1736882129284,4e-07,97089.0,97088.0,0.638351]
[1736882129495,0.00014885,97089.0,97088.0,0.80853805]
[1736882129696,0.00014885,97089.0,97088.0,0.70853805]
[1736882130681,0.00014885,97089.0,97088.0,0.71813466]
[1736882130881,0.00014885,97089.0,97088.0,0.82536158]
[1736882131081,0.00014885,97089.0,97088.0,0.83436158]
[1736882131322,0.00014885,97089.0,97088.0,0.92599866]
[1736882132166,0.00014885,97089.0,97088.0,0.83436158]
[1736882132589,0.00014885,97089.0,97088.0,0.78876158]
[1736882132784,0.00014885,97089.0,97088.0,0.60640858]
[1736882132984,0.00014885,97089.0,97088.0,0.22759461]
[1736882133302,0.00014885,97089.0,97088.0,0.02159661]
[1736882133505,0.00014885,97089.0,97088.0,0.012]
[1736882134359,0.00014885,97089.0,97088.0,0.003]
[1736882134576,0.00014885,97089.0,97088.0,0.004]
[1736882134751,0.00014885,97089.0,97088.0,0.001]
[1736882134904,0.00114885,97089.0,97086.0,0.206001]
[1736882135934,0.00114885,97089.0,97083.0,0.0010299]
[1736882136142,0.00114885,97089.0,97082.0,0.206011]
[1736882136361,0.00014885,97089.0,97082.0,0.206011]
[1736882136554,0.00214885,97089.0,97082.0,0.206011]
[1736882136951,0.00214885,97089.0,97080.0,0.206015]
[1736882136952,0.000247,97087.0,97080.0,0.206015]
[1736882137624,0.000247,97087.0,97074.0,0.03067433]
[1736882137846,0.00014885,97089.0,97080.0,0.06494153]
[1736882138046,0.00214885,97089.0,97083.0,0.412016]
[1736882138164,0.00468647,97088.0,97083.0,0.206007]
[1736882138363,0.00214885,97089.0,97083.0,0.206007]
[1736882138786,0.00468647,97088.0,97083.0,0.2249665]
[1736882139033,0.00468647,97088.0,97087.0,0.206]
[1736882139250,0.00214885,97089.0,97084.0,0.206007]
[1736882139481,0.00014885,97089.0,97087.0,0.205999]
[1736882140371,0.00214885,97089.0,97087.0,0.205999]
[1736882140572,0.00214885,97089.0,97085.0,0.20703494]
[1736882140973,0.00014885,97089.0,97085.0,0.20703494]
[1736882141177,0.00214885,97089.0,97085.0,0.20703494]
[1736882142003,0.00214885,97089.0,97085.0,0.00102994]
[1736882142380,0.00214885,97089.0,97080.0,0.206015]
[1736882142623,0.00014885,97089.0,97080.0,0.206015]
[1736882142989,0.00014885,97089.0,97081.0,0.00102994]
[1736882143187,0.00014885,97089.0,97082.0,0.206011]
[1736882143437,0.00214885,97089.0,97082.0,0.20704094]
[1736882143642,0.00214885,97089.0,97082.0,0.206011]
[1736882143992,0.00014885,97089.0,97082.0,0.20704094]
[1736882144396,0.00214885,97089.0,97082.0,0.20704094]
[1736882144954,0.0484,97087.0,97079.0,0.00179193]
[1736882145171,0.03338389,97086.0,97079.0,0.00179193]
[1736882145369,0.00462678,97086.0,97079.0,0.00179193]
[1736882145748,0.00462678,97086.0,97079.0,0.20780793]
[1736882146777,0.00662678,97086.0,97079.0,0.20780793]
[1736882146979,0.002,97086.0,97079.0,0.20780793]
[1736882148314,0.002,97086.0,97079.0,0.00179193]
[1736882148562,0.002,97086.0,97080.0,0.206015]
[1736882149207,0.002,97086.0,97079.0,0.00179193]
[1736882149423,0.0484,97087.0,97079.0,0.00179193]
[1736882149827,0.002,97086.0,97079.0,0.00179193]
[1736882150261,0.0484,97087.0,97079.0,0.00179193]
[1736882150513,0.000247,97082.0,97079.0,0.00179193]
[1736882150764,0.000247,97080.0,97079.0,0.00179193]
[1736882153050,0.001247,97080.0,97079.0,0.00179193]
[1736882153435,0.000247,97080.0,97079.0,0.00179193]
[1736882153635,0.06307498,97080.0,97079.0,0.00179193]
[1736882154602,0.003247,97080.0,97079.0,0.00179193]
[1736882157214,0.003247,97080.0,97079.0,0.00606763]
[1736882161006,0.209262,97080.0,97079.0,0.00606763]
[1736882161977,0.003247,97080.0,97079.0,0.00606763]
[1736882162393,0.209262,97080.0,97079.0,0.00606763]
[1736882162537,0.31348892,97080.0,97079.0,0.00606763]
[1736882164115,0.31944892,97080.0,97079.0,0.00606763]
[1736882165192,0.10747392,97080.0,97079.0,0.00606763]
[1736882167357,0.40826006,97080.0,97079.0,0.00606763]
[1736882167544,0.45556006,97080.0,97079.0,0.00606763]
[1736882167748,0.86156351,97080.0,97079.0,0.00606763]
[1736882167960,0.328707,97059.0,97058.0,0.00179256]
[1736882168151,0.43293392,97059.0,97058.0,0.00179256]
[1736882168359,0.47622192,97059.0,97058.0,0.00179256]
[1736882168719,0.43293392,97059.0,97058.0,0.00179256]
[1736882169573,0.43693392,97059.0,97058.0,0.00179256]
[1736882171159,0.43793392,97059.0,97058.0,0.00179256]
[1736882171344,0.61689392,97059.0,97058.0,0.00179256]
[1736882172832,0.89989737,97059.0,97058.0,0.00179256]
[1736882173058,0.90412429,97059.0,97058.0,0.00179256]
[1736882173540,0.79989737,97059.0,97058.0,0.00179256]
[1736882177522,0.79393737,97059.0,97058.0,0.00179256]
[1736882177740,0.79989737,97059.0,97058.0,0.00179256]
[1736882178060,0.79393737,97059.0,97058.0,0.00179256]
[1736882178204,0.77689737,97059.0,97058.0,0.00179256]
[1736882178428,0.88112429,97059.0,97058.0,0.00179256]
[1736882179855,0.90412429,97059.0,97058.0,0.00179256]
[1736882180821,0.79889737,97059.0,97058.0,0.00179256]
[1736882181173,0.79489737,97059.0,97058.0,0.00279256]
[1736882181328,0.79989737,97059.0,97058.0,0.00279256]
[1736882185320,0.65449737,97059.0,97058.0,0.00279256]
[1736882192029,0.65437339,97059.0,97058.0,0.00279256]
[1736882193699,0.75860031,97059.0,97058.0,0.00279256]
[1736882195039,0.65437339,97059.0,97058.0,0.00279256]
[1736882196047,0.29235339,97059.0,97058.0,0.00279256]
[1736882196254,0.18812647,97059.0,97058.0,0.00279256]
[1736882196873,0.18312647,97059.0,97058.0,0.00279256]
[1736882197229,0.18712647,97059.0,97058.0,0.00179256]
[1736882197634,0.18612647,97059.0,97058.0,0.00279256]
[1736882198033,0.19112647,97059.0,97058.0,0.00279256]
[1736882199714,0.19198007,97059.0,97058.0,0.00279256]
[1736882200063,0.29620699,97059.0,97058.0,0.00279256]
[1736882204084,0.44620699,97059.0,97058.0,0.00279256]
[1736882205644,0.46920699,97059.0,97058.0,0.00279256]
[1736882205853,0.56920699,97059.0,97058.0,0.00279256]
[1736882206054,0.64940699,97059.0,97058.0,0.00279256]
[1736882206253,0.75363391,97059.0,97058.0,0.00279256]
[1736882206463,0.77393344,97059.0,97058.0,0.00279256]
[1736882206874,0.87393344,97059.0,97058.0,0.00279256]
[1736882207072,0.87393344,97059.0,97058.0,5.6e-07]
[1736882207073,0.93029143,97059.0,97058.0,5.6e-07]
[1736882207280,0.93629143,97059.0,97058.0,5.6e-07]
[1736882207481,1.07259984,97059.0,97058.0,5.6e-07]
[1736882208318,0.93629143,97059.0,97058.0,0.001]
[1736882208515,0.57919802,97052.0,97019.0,0.0767]
[1736882208716,0.77837216,97052.0,97019.0,0.0767]
[1736882210746,0.78437216,97052.0,97019.0,0.0767]
[1736882211326,0.56962494,97052.0,97020.0,0.12241408]
[1736882211491,0.67558494,97052.0,97012.0,0.0474]
[1736882211694,0.86758839,97052.0,97051.0,0.00279067]
[1736882211896,0.96758839,97052.0,97051.0,0.00279067]
[1736882214131,1.01278839,97052.0,97051.0,6.7e-07]
[1736882214335,0.70463402,97035.0,97011.0,0.00179067]
[1736882214480,0.80886094,97035.0,97034.0,0.00228621]
[1736882216114,0.80886094,97035.0,97034.0,2.1e-07]
[1736882217541,0.81786094,97035.0,97034.0,0.00100021]
[1736882217886,1.0257802,97035.0,97034.0,2.1e-07]
[1736882218537,1.0347802,97035.0,97034.0,0.00100021]
[1736882218871,1.0347802,97035.0,97034.0,0.00081658]
[1736882219287,1.0347802,97035.0,97034.0,5.8e-07]
[1736882219488,1.06149954,97035.0,97034.0,5.8e-07]
[1736882220048,1.0776638,97035.0,97034.0,5.8e-07]
[1736882220596,1.30879958,97035.0,97034.0,5.8e-07]
[1736882221406,0.38928647,97012.0,97011.0,0.00179067]
[1736882221616,0.60105704,97012.0,97011.0,0.00179067]
[1736882221811,0.75105704,97012.0,97011.0,0.00179067]
[1736882222021,0.85105704,97012.0,97011.0,0.00179067]
[1736882222252,0.85701704,97012.0,97011.0,0.00179067]
[1736882222487,0.95701704,97012.0,97011.0,0.00179067]
[1736882222605,0.96601704,97012.0,97011.0,0.00179067]
[1736882222803,0.97101704,97012.0,97011.0,0.00279067]
[1736882223226,0.97101704,97012.0,97011.0,0.00029067]
[1736882224805,0.98121667,97012.0,97011.0,0.00029067]
[1736882225467,1.00237682,97012.0,97011.0,0.00029067]
[1736882226183,1.00237682,97012.0,96990.0,0.0759]
[1736882226184,0.35632102,96994.0,96990.0,0.0759]
[1736882226326,0.48023121,96994.0,96993.0,0.00169991]
[1736882226736,0.64355139,96994.0,96993.0,0.00169991]
[1736882227390,0.64655139,96994.0,96993.0,0.00169991]
[1736882227596,0.64655139,96994.0,96993.0,0.00184847]
[1736882228774,0.65255139,96994.0,96993.0,0.00184847]
[1736882228980,0.67555139,96994.0,96993.0,0.00184847]
[1736882229185,0.95898188,96994.0,96993.0,0.00184847]
[1736882229545,0.96938539,96994.0,96993.0,0.00184847]
[1736882229960,0.96938539,96994.0,96993.0,4.7e-07]
[1736882229961,0.96638539,96994.0,96993.0,4.7e-07]
[1736882230337,0.97138539,96994.0,96993.0,4.7e-07]
[1736882230739,0.96538539,96994.0,96993.0,4.7e-07]